[Event "3rd Avagyan Memorial 2022"]
[Site "Jermuk"]
[Date "2022.06.20"]
[Round "1.1"]
[White "Sargsyan, Shant"]
[Black "Niemann, Hans Moke"]
[Result "1/2-1/2"]
[ECO "E11"]
[WhiteElo "2641"]
[BlackElo "2656"]
[Annotator "TA"]
[PlyCount "57"]
[EventDate "2022.06.20"]
[EventType "tourn"]
[EventCountry "ARM"]
[SourceTitle "playchess.com"]
[Source "ChessBase"]
[SourceQuality "1"]
[TimeControl "40/5400+30:1800+30"]

{[%evp 16,57,2,10,10,5,6,-9,0,-2,24,27,31,34,64,62,58,56,58,62,59,66,59,68,56,56,54,58,61,62,54,21,38,41,34,39,41,41,47,14,19,14,30,17]} 1. d4 {[%emt 0:03:30]} Nf6 {[%emt 0:00:19]} 2. c4 {[%emt 0:00:38]} e6 {[%emt 0:00:24]} 3. g3 {[%emt 0:00:06]} d5 {[%emt 0:00:58]} 4. Nf3 {[%emt 0:00:27]} Bb4+ {[%emt 0:00:43]} 5. Bd2 {[%emt 0:00:10]} Be7 {[%emt 0:00:09]} 6. Bg2 {[%emt 0:00:07]} O-O {[%emt 0:00:15]} 7. O-O {[%emt 0:00:10]} Nbd7 {[%emt 0:00:08]} 8. Qc2 {[%emt 0:00:20]} c6 {[%emt 0:00:10]} 9. Bf4 {[%emt 0:00:13]} b6 {[%emt 0:00:09] E11: Bogo-Indian.} 10. Nbd2 {[%emt 0:00:06]} Nh5 {[%emt 0:00:11]} 11. Be5 {[%emt 0:00:11] 11.e3 is setting a new trend.} Bb7 {[%emt 0:05:38] The position is equal.} 12. cxd5 {[%emt 0:00:07] [#]} Nxe5 $146 {[%emt 0:06:22]} ({Predecessor:} 12... cxd5 13. Bc7 Qe8 14. Rfc1 Rc8 15. Qd1 Nc5 16. Be5 Nd7 17. e3 Nhf6 18. Bf1 Nxe5 19. Nxe5 {1-0 (57) Istratescu,A (2645)-Hammer,J (2610) Eretria 2011}) 13. dxe5 {[%emt 0:02:29] [#] d6 is the strong threat.} cxd5 {[%emt 0:00:32]} 14. Rfc1 {[%emt 0:03:44]} Qd7 {[%emt 0:01:30]} 15. Qc7 {[%emt 0:09:12]} Rfd8 {[%emt 0:00:18]} 16. e3 {[%emt 0:01:29] And now g4 would win.} g6 {[%emt 0:00:16]} 17. Bf1 {[%emt 0:01:22][%cal Bg2f1,Bf1b5,Bb5e2][%mdl 32] Threatens to win with Qxd7.} Kf8 {[%emt 0:12:21]} 18. Qxd7 {[%emt 0:03:33]} Rxd7 {[%emt 0:00:10]} 19. Bb5 {[%emt 0:00:09]} Rdd8 {[%emt 0:00:07]} 20. Rc7 {[%emt 0:00:11]} Rab8 {[%emt 0:00:05]} 21. Nd4 {[%emt 0:15:57]} Rdc8 {[%emt 0:01:08]} 22. Rac1 {[%emt 0:01:02] 0x0.001b695847a8dp-1022s more active pieces. The black rooks are badly placed.} a6 {[%emt 0:01:49]} 23. Be2 {[%emt 0:07:13]} (23. Bd7 $5 {[%cal Rd7c8]} Rxc7 24. Rxc7 $14) 23... Rxc7 {[%emt 0:00:42]} 24. Rxc7 {[%emt 0:00:02][%cal Oe2a6]} Bd8 {[%emt 0:00:10]} 25. Rc3 {[%emt 0:01:36]} Rc8 {[%emt 0:02:10]} 26. Rxc8 {[%emt 0:02:31]} Bxc8 {[%emt 0:00:20]} 27. Bxh5 {[%emt 0:01:26]} gxh5 {[%emt 0:00:11]} 28. f4 {[%emt 0:02:29]} a5 {[%emt 0:00:55]} 29. Kf2 {[%emt 0:04:32] Weighted Error Value: White=0.04 (flawless) /Black=0.05 (flawless)} 1/2-1/2

[Event "3rd Avagyan Memorial 2022"]
[Site "Jermuk"]
[Date "2022.06.20"]
[Round "1.2"]
[White "Gharibyan, Mamikon"]
[Black "Martirosyan, Haik M."]
[Result "1/2-1/2"]
[ECO "E15"]
[WhiteElo "2487"]
[BlackElo "2652"]
[Annotator "TA"]
[PlyCount "51"]
[EventDate "2022.06.20"]
[EventType "tourn"]
[EventCountry "ARM"]
[SourceTitle "playchess.com"]
[Source "ChessBase"]
[SourceQuality "1"]
[TimeControl "40/5400+30:1800+30"]

{[%evp 19,51,3,13,7,19,6,11,0,36,0,0,0,21,31,35,17,25,24,15,9,7,12,18,11,20,0,0,-4,0,0,0,0,0,0]} 1. d4 {[%emt 0:00:03]} Nf6 {[%emt 0:00:10]} 2. c4 {[%emt 0:00:08]} e6 {[%emt 0:00:06]} 3. Nf3 {[%emt 0:00:12]} b6 {[%emt 0:00:21]} 4. g3 {[%emt 0:00:13]} Ba6 {[%emt 0:00:10]} 5. b3 {[%emt 0:00:13]} Bb4+ {[%emt 0:00:30]} 6. Bd2 {[%emt 0:00:30]} Be7 {[%emt 0:00:30]} 7. Nc3 {[%emt 0:00:30]} d5 {[%emt 0:00:30]} 8. cxd5 {[%emt 0:00:30]} exd5 {[%emt 0:00:30]} 9. Bg2 {[%emt 0:00:30]} O-O {[%emt 0:00:30]} 10. O-O {[%emt 0:00:30]} Re8 {[%emt 0:00:30]} 11. a3 {[%emt 0:00:30] E15: Queen's Indian: 4 g3 sidelines, 4 g3 Ba6 and 4 g3 Bb7 early deviations.} Nbd7 {[%emt 0:04:42]} 12. b4 {[%emt 0:00:00]} c6 {[%emt 0:01:58]} 13. Ne5 {[%emt 0:05:41]} Bb7 {[%emt 0:03:48] [#]} 14. e4 $146 {[%emt 0:05:03]} ({Predecessor:} 14. Qb3 Nf8 15. e4 Ne6 16. Be3 dxe4 17. Nxe4 Nd5 18. Rad1 f6 19. Nd3 Qd7 20. Bh3 {1-0 (37) So,W (2765)-Supi,L (2577) Chess.com INT 2020}) 14... Nxe5 {[%emt 0:12:24]} 15. dxe5 {[%emt 0:00:13]} d4 {[%emt 0:00:30]} 16. exf6 {[%emt 0:00:30]} (16. Ne2 {is interesting.} Nd7 17. Nxd4 Nxe5 18. Bc3) 16... dxc3 {[%emt 0:00:30]} 17. fxe7 {[%emt 0:00:30]} (17. Bxc3 {is more complex.} Bxf6 18. Qxd8 Raxd8 19. Bxf6 gxf6 20. Rfd1) 17... Qxd2 {[%emt 0:06:35]} 18. Qxd2 {[%emt 0:53:45]} (18. Qa4 {looks sharper.} Qg5 19. Rac1 a5 20. Rxc3 Qxe7 21. Rb1) 18... cxd2 {[%emt 0:00:30]} 19. Rfd1 {[%emt 0:00:30] The position is equal.} Rxe7 {[%emt 0:03:15]} 20. Rxd2 {[%emt 0:00:00]} Kf8 {[%emt 0:03:07]} 21. Rc1 {[%emt 0:02:28]} a5 {[%emt 0:08:57]} 22. bxa5 {[%emt 0:03:08]} Rxa5 {[%emt 0:01:59]} 23. Rd8+ {[%emt 0:01:36]} Re8 {[%emt 0:00:06]} 24. Rd7 {[%emt 0:00:03]} Re7 {[%emt 0:05:59]} 25. Rd8+ {[%emt 0:00:20]} Re8 {[%emt 0:00:09]} 26. Rd7 {[%emt 0:00:04] A balanced but interesting game.  Weighted Error Value: White=0.09 (flawless) /Black=0.07 (flawless)} 1/2-1/2

[Event "3rd Avagyan Memorial 2022"]
[Site "Jermuk"]
[Date "2022.06.20"]
[Round "1.3"]
[White "Nihal Sarin"]
[Black "Petrosyan, Manuel"]
[Result "1-0"]
[ECO "D02"]
[WhiteElo "2646"]
[BlackElo "2638"]
[Annotator "TA"]
[PlyCount "75"]
[EventDate "2022.06.20"]
[EventType "tourn"]
[EventCountry "ARM"]
[SourceTitle "playchess.com"]
[Source "ChessBase"]
[SourceQuality "1"]
[TimeControl "40/5400+30:1800+30"]

{[%evp 9,75,3,4,0,2,0,8,0,7,0,0,0,0,0,12,0,0,-5,-2,-13,-14,-16,17,14,48,38,68,62,64,56,96,116,116,104,120,119,134,121,175,168,274,291,1125,1307,1006,1307,1307,1307,1307,1307,1298,1199,1284,413,413,398,395,406,391,385,377,377,431,423,384,343,306,260]} 1. d4 {[%emt 0:03:26]} Nf6 {[%emt 0:00:20]} 2. Nf3 {[%emt 0:00:05]} d5 {[%emt 0:01:26]} 3. c3 {[%emt 0:00:07]} e6 {[%emt 0:04:26]} 4. Bf4 {[%emt 0:00:06]} Bd6 {[%emt 0:00:34]} 5. e3 {[%emt 0:00:07]} O-O {[%emt 0:01:54]} (5... c5 {keeps more tension.} 6. dxc5 Bxc5 7. c4 Nc6) 6. Nbd2 {[%emt 0:00:07] D02: 1 d4 d5 2 Nf3 sidelines, including 2...Nf6 3 g3 and 2...Nf6 3 Bf4.} Bxf4 {[%emt 0:03:11]} 7. exf4 {[%emt 0:00:08]} b6 {[%emt 0:00:02]} 8. h4 {[%emt 0:01:24][%cal Bh2h4,Bh4h5,Bh5h6][%mdl 32] The position is equal.} c5 {[%emt 0:03:31]} 9. h5 {[%emt 0:03:43]} Qd6 {[%emt 0:04:46]} 10. h6 {[%emt 0:01:24]} g6 {[%emt 0:00:10]} 11. g3 $1 {[%emt 0:00:06]} a5 {[%emt 0:09:26]} 12. a3 {[%emt 0:11:13]} Nc6 {[%emt 0:05:11] [#]} 13. Bd3 $5 $146 {[%emt 0:18:40][%mdl 8] New and interesting.} ({Predecessor:} 13. Qa4 Bd7 14. Qd1 Rab8 15. Bd3 b5 16. Ne5 cxd4 17. Nxc6 Bxc6 18. cxd4 b4 19. Qe2 bxa3 20. bxa3 {0-1 (67) Yurtseven,M (2400)-Yilmazyerli,M (2413) Antalya 2021}) 13... Ba6 {[%emt 0:01:44]} 14. Qe2 {[%emt 0:06:15]} Bxd3 {[%emt 0:02:50]} 15. Qxd3 {[%emt 0:00:03]} cxd4 {[%emt 0:16:02]} (15... Ne7 {is more complex.} 16. Ne5 Qc7 17. Ndf3 Rae8) 16. Nxd4 {[%emt 0:12:33]} Ne7 {[%emt 0:02:43]} 17. Kf1 {[%emt 0:02:13]} Nf5 {[%emt 0:09:58]} 18. Nxf5 {[%emt 0:05:17]} exf5 {[%emt 0:00:28]} 19. Qd4 {[%emt 0:00:08]} b5 {[%emt 0:03:39] White stays focused until the end.} 20. g4 {[%emt 0:16:24]} Rfd8 {[%emt 0:08:03]} (20... fxg4 $2 21. Ne4 $1 {[%mdl 512]} Qd8 22. Nxf6+ $18) 21. gxf5 {[%emt 0:02:31]} Ra6 {[%emt 0:01:36]} 22. fxg6 {[%emt 0:06:03]} fxg6 {[%emt 0:00:06]} 23. Re1 {[%emt 0:00:03][%cal Of4f5]} Qf8 {[%emt 0:02:22] [#]} (23... Qb6 $16 {is a better defense.}) 24. Nf3 $1 $18 {[%emt 0:07:53]} Nh5 {[%emt 0:09:58]} (24... Ne4 {was worth a try.} 25. Ng5 Qf6) 25. Ng5 {[%emt 0:00:38][%cal Oh1h5] Threatens to win with Rxh5!} Nxf4 {[%emt 0:05:55]} (25... Qxf4 26. Qxf4 Nxf4) 26. Rh4 {[%emt 0:00:56]} Nh5 {[%emt 0:00:14] [#]} 27. Rxh5 $1 {[%emt 0:01:24][%mdl 512]} gxh5 {[%emt 0:00:06]} 28. Ne6 {[%emt 0:00:03]} Rxe6 {[%emt 0:00:50]} 29. Rxe6 {[%emt 0:00:01][%mdl 4096] Endgame KQR-KQR} Qf7 {[%emt 0:00:41]} 30. Qe3 {[%emt 0:01:49] Qg5+ would kill now.} Rf8 {[%emt 0:00:43]} 31. Re7 {[%emt 0:00:29]} (31. Qg3+ $142 Kh8 32. Re3) 31... Qf4 {[%emt 0:01:21]} 32. Rg7+ {[%emt 0:00:09]} Kh8 {[%emt 0:00:01] ( -> ...Qxe3)} 33. Qxf4 {[%emt 0:00:06]} Rxf4 {[%emt 0:00:03]} 34. Rb7 {[%emt 0:01:18] Intending Rb8+ and mate.} Kg8 {[%emt 0:00:01]} 35. Rxb5 {[%emt 0:00:07]} d4 {[%emt 0:00:36]} 36. cxd4 {[%emt 0:00:20]} a4 {[%emt 0:00:40]} 37. Rxh5 {[%emt 0:00:34]} Rxd4 {[%emt 0:00:07]} 38. Rg5+ {[%emt 0:00:04] Weighted Error Value: White=0.19 (very precise) /Black=0.16 (very precise)} 1-0

[Event "3rd Avagyan Memorial 2022"]
[Site "Jermuk"]
[Date "2022.06.20"]
[Round "1.4"]
[White "Donchenko, Alexander"]
[Black "Ter-Sahakyan, Samvel"]
[Result "1-0"]
[ECO "A21"]
[WhiteElo "2599"]
[BlackElo "2640"]
[Annotator "TA"]
[PlyCount "75"]
[EventDate "2022.06.20"]
[EventType "tourn"]
[EventCountry "ARM"]
[SourceTitle "playchess.com"]
[Source "ChessBase"]
[SourceQuality "1"]
[TimeControl "40/5400+30:1800+30"]

{[%evp 9,75,18,20,29,18,16,26,25,21,8,31,27,31,21,42,35,37,15,47,46,45,18,65,14,35,41,33,38,32,42,35,24,25,24,93,101,105,104,102,93,105,72,159,160,176,164,250,245,226,237,266,258,244,236,270,267,393,392,372,394,496,477,758,741,841,834,735,717]} 1. c4 {[%emt 4:43:33]} e5 {[%emt 0:00:53]} 2. Nc3 {[%emt 0:00:13]} Bb4 {[%emt 0:00:38]} 3. Nd5 {[%emt 0:00:17]} Be7 {[%emt 0:00:36]} 4. d4 {[%emt 0:00:16]} exd4 {[%emt 0:00:15]} 5. Qxd4 {[%emt 0:00:07]} Nf6 {[%emt 0:00:14]} 6. Nxe7 {[%emt 0:00:09] A21: English Opening: 1...e5 2 Nc3.} Qxe7 {[%emt 0:00:05]} 7. Bg5 {[%emt 0:00:07]} Nc6 {[%emt 0:00:52]} 8. Qc3 {[%emt 0:00:08] White has an edge.} d6 {[%emt 0:03:41]} 9. Nf3 {[%emt 0:00:22]} Be6 {[%emt 0:07:02]} 10. e3 {[%emt 0:07:39]} Rg8 {[%emt 0:03:51]} 11. Bxf6 {[%emt 0:04:08] [#]} Qxf6 $146 {[%emt 0:02:43]} ({Predecessor:} 11... gxf6 12. O-O-O O-O-O 13. Nd4 Nxd4 14. Rxd4 c5 15. Rf4 f5 16. g3 Rg4 17. a3 Rxf4 18. exf4 {½-½ (42) Cronje,H (2188)-Siburian,C (2294) ICCF email 2020}) 12. Qxf6 {[%emt 0:00:48]} gxf6 {[%emt 0:00:04]} 13. g3 {[%emt 0:08:30]} Ke7 {[%emt 0:08:47]} 14. Be2 {[%emt 0:10:34]} Ne5 {[%emt 0:03:19]} 15. Nd2 {[%emt 0:06:47]} c5 {[%emt 0:04:15]} (15... f5 $11 {was preferrable.}) 16. Rc1 {[%emt 0:08:30]} ({Better is} 16. f4 $14 Ng4 17. e4) 16... a6 {[%emt 0:02:48][%cal Ob7b5]} 17. f4 {[%emt 0:05:03]} Nc6 {[%emt 0:10:07]} 18. Kf2 {[%emt 0:09:09]} Rab8 {[%emt 0:08:34]} 19. Rhd1 {[%emt 0:01:47]} b5 {[%emt 0:07:22]} 20. b3 {[%emt 0:00:34][%cal Bb2b3,Bb3b4][%mdl 32]} Rgd8 {[%emt 0:03:15]} 21. g4 {[%emt 0:03:43]} Nb4 {[%emt 0:07:06]} (21... f5 $11 {keeps the balance.}) 22. a3 $16 {[%emt 0:00:46] White stays focused until the end.} Nc6 {[%emt 0:00:09]} 23. cxb5 {[%emt 0:07:56]} axb5 {[%emt 0:00:16] [#]} 24. b4 $1 {[%emt 0:00:05]} c4 {[%emt 0:04:18]} 25. Ne4 {[%emt 0:00:29]} Ra8 {[%emt 0:06:35] [#]} ({Black should try} 25... d5 26. Nc3 d4 27. exd4 Nxd4) 26. Ra1 $1 {[%emt 0:01:57] White is more active.} d5 {[%emt 0:05:44]} 27. Nc3 {[%emt 0:00:52]} d4 {[%emt 0:00:07]} (27... h5 $142) 28. Nxb5 $18 {[%emt 0:00:55]} d3 {[%emt 0:04:31]} 29. Bf3 {[%emt 0:00:23]} Na7 {[%emt 0:00:37]} 30. Nc3 {[%emt 0:03:02]} ({Don't do} 30. Bxa8 $6 Nxb5 31. Bf3 c3 $16) 30... Rab8 {[%emt 0:00:03]} 31. f5 {[%emt 0:01:13]} Bd7 {[%emt 0:00:15]} 32. a4 {[%emt 0:02:28]} ({Not} 32. Nd5+ Kf8 $16) 32... Bc6 {[%emt 0:01:45]} (32... Nc6 $142 33. Bxc6 Bxc6) 33. b5 {[%emt 0:00:57]} Bxf3 {[%emt 0:00:27]} 34. Kxf3 {[%emt 0:00:02]} Kd6 {[%emt 0:00:45]} 35. Ne4+ {[%emt 0:01:40] White is clearly winning.} Kd5 {[%emt 0:02:38]} (35... Ke7 $142 36. Rac1 Nc8 37. Rxc4 Nb6) 36. Rac1 {[%emt 0:00:45][%cal Od1d3] Threatens to win with Rxd3+!} Rdc8 {[%emt 0:01:10]} 37. Kf4 {[%emt 0:02:38]} Rb6 {[%emt 0:00:46]} 38. Rc3 {[%emt 0:01:13] Weighted Error Value: White=0.06 (flawless) /Black=0.30} 1-0

[Event "3rd Avagyan Memorial 2022"]
[Site "Jermuk"]
[Date "2022.06.20"]
[Round "1.5"]
[White "Nguyen, Thai Dai Van"]
[Black "Tabatabaei, M. Amin"]
[Result "1/2-1/2"]
[ECO "B30"]
[WhiteElo "2612"]
[BlackElo "2650"]
[Annotator "TA"]
[PlyCount "63"]
[EventDate "2022.06.20"]
[EventType "tourn"]
[EventCountry "ARM"]
[SourceTitle "playchess.com"]
[Source "ChessBase"]
[SourceQuality "1"]
[TimeControl "40/5400+30:1800+30"]

{[%evp 9,63,23,53,30,36,36,36,32,37,20,31,32,43,31,78,62,77,75,75,41,82,82,94,52,111,102,111,104,111,111,110,106,102,95,131,124,145,150,156,153,154,154,154,148,152,167,165,156,149,149,143,98,122,0,0,0]} 1. e4 {[%emt 0:00:56]} c5 {[%emt 0:00:30]} 2. Nf3 {[%emt 0:00:27]} Nc6 {[%emt 0:00:07]} 3. Bb5 {[%emt 0:01:58]} e6 {[%emt 0:00:43]} 4. O-O {[%emt 0:03:04]} Nge7 {[%emt 0:00:12]} 5. Re1 {[%emt 0:00:21]} h6 {[%emt 0:00:47]} 6. b3 {[%emt 0:07:55] B30: Sicilian: 2...Nc6 3 Bb5, lines without ...g6.} (6. c3 $5 {[%cal Rd2d4]}) 6... a6 {[%emt 0:01:24]} 7. Bxc6 {[%emt 0:00:18]} Nxc6 {[%emt 0:00:06]} 8. Bb2 {[%emt 0:00:04] White is slightly better.} b5 {[%emt 0:03:46] [#]} 9. a4 $146 {[%emt 0:00:15] aiming for axb5.} ({Predecessor:} 9. Nc3 Be7 10. a4 bxa4 11. Nxa4 O-O 12. d4 cxd4 13. Nxd4 Bb7 14. Nxc6 Bxc6 15. Qd4 {½-½ (32) Vachier Lagrave,M (2750)-Giri,A (2761) Stavanger 2022}) 9... b4 {[%emt 0:00:34]} 10. d3 {[%emt 0:00:09]} h5 {[%emt 0:02:35]} 11. Nbd2 {[%emt 0:02:19]} f6 {[%emt 0:02:07]} (11... d6 $14) 12. e5 {[%emt 0:16:35]} d5 {[%emt 0:03:33]} 13. exd6 {[%emt 0:03:29]} Bxd6 {[%emt 0:00:43]} 14. Nc4 {[%emt 0:04:21]} Bc7 {[%emt 0:20:42]} 15. Qe2 {[%emt 0:07:38]} Qd5 {[%emt 0:05:25]} 16. Rad1 {[%emt 0:06:17]} e5 {[%emt 0:08:00]} (16... Nd4 $14 17. Nxd4 cxd4) 17. d4 $1 $16 {[%emt 0:01:27]} cxd4 {[%emt 0:00:14]} 18. Nxd4 {[%emt 0:02:26]} Nxd4 {[%emt 0:02:03]} 19. Bxd4 {[%emt 0:02:03]} (19. Rxd4 Qf7 $14) 19... Bb7 {[%emt 0:04:46][%csl Gb7][%cal Rd5g2]} 20. f4 {[%emt 0:01:58][%cal Rd4e5,Bf2f4,Bf4e5,Be5f6][%mdl 32] Black must now prevent Bxe5! Active counter play!} O-O {[%emt 0:07:19][%csl LRd4,LRf4]} 21. fxe5 {[%emt 0:00:42]} ({Much less strong is} 21. Bxe5 Qc5+ 22. Bd4 Qc6 $14) 21... Rae8 {[%emt 0:01:37] [#]} 22. Ne3 $1 $36 {[%emt 0:04:17][%mdl 2048] Keeping Black busy.} Qe4 {[%emt 0:03:16] [#]} 23. exf6 {[%emt 0:05:01]} ({Reject} 23. Qxh5 $6 Bxe5 24. Qe2 Bb8 $14) ({Don't play} 23. Qc4+ $6 Rf7 $14) 23... Bf4 {[%emt 0:08:26]} 24. Qf2 {[%emt 0:05:25][%cal Oe3g4] Strongly threatening Ng4!} Qg6 {[%emt 0:13:46] Against Ng4} 25. Qxf4 {[%emt 0:11:05]} Rxe3 {[%emt 0:00:03][%csl Gb7][%cal Rg6g2]} 26. Qf2 {[%emt 0:00:26]} Re4 {[%emt 0:03:18][%cal Oe4f4]} 27. Rxe4 {[%emt 0:03:21]} Bxe4 {[%emt 0:00:03]} 28. Rd2 {[%emt 0:00:10]} gxf6 {[%emt 0:00:49]} 29. Bc5 {[%emt 0:00:18]} Rc8 {[%emt 0:00:56]} 30. Qd4 {[%emt 0:00:54]} a5 {[%emt 0:02:57]} 31. Qd7 {[%emt 0:03:46]} Qf5 $11 {[%emt 0:01:33]} (31... Rxc5 $2 32. Qd8+ Kg7 33. Rd7+ Qf7 34. Rxf7+ Kxf7 35. Qd7+ Kg6 36. Qe8+ Kg5 37. Qxe4 $18) 32. Qxf5 {[%emt 0:00:17] Weighted Error Value: White=0.10 (very precise) /Black=0.12 (very precise)} 1/2-1/2

[Event "3rd Avagyan Memorial 2022"]
[Site "Jermuk"]
[Date "2022.06.21"]
[Round "2.2"]
[White "Ter-Sahakyan, Samvel"]
[Black "Nguyen, Thai Dai Van"]
[Result "1/2-1/2"]
[ECO "C84"]
[WhiteElo "2640"]
[BlackElo "2612"]
[Annotator "TA"]
[PlyCount "109"]
[EventDate "2022.06.20"]
[EventType "tourn"]
[EventCountry "ARM"]
[SourceTitle "playchess.com"]
[Source "ChessBase"]
[SourceQuality "1"]
[TimeControl "40/5400+30:1800+30"]

{[%evp 13,109,12,23,25,28,16,14,7,16,11,19,19,27,29,20,1,19,19,29,45,43,43,41,47,29,32,39,22,30,22,29,29,32,0,27,22,23,3,8,8,8,0,24,9,19,0,22,26,21,14,10,7,0,0,0,0,6,10,36,40,39,29,29,21,13,0,25,0,0,0,40,37,40,40,40,66,31,19,19,19,19,19,19,19,19,19,19,8,27,0,0,0,10,2,14,13,18,16]} 1. e4 {[%emt 0:00:03]} e5 {[%emt 0:00:10]} 2. Nf3 {[%emt 0:00:30]} Nc6 {[%emt 0:00:30]} 3. Bb5 {[%emt 0:00:30][%cal Bf1b5,Bb5a4,Ba4b3][%mdl 32]} a6 {[%emt 0:00:30]} 4. Ba4 {[%emt 0:00:30]} Nf6 {[%emt 0:00:30]} 5. O-O {[%emt 0:00:30]} Be7 {[%emt 0:00:30]} 6. d3 {[%emt 0:00:30]} b5 {[%emt 0:00:30]} 7. Bb3 {[%emt 0:00:30]} O-O {[%emt 0:00:30]} 8. h3 {[%emt 0:00:30] C84: Closed Ruy Lopez: Unusual White 6th moves.} d5 {[%emt 0:00:30]} 9. Nc3 {[%emt 0:00:30][%cal Rc3d5] [#]} dxe4 $146 {[%emt 0:00:30]} ({Predecessor:} 9... d4 10. Nd5 h6 11. Bd2 Re8 12. c3 Be6 13. Re1 Bc5 14. a4 bxa4 15. Bxa4 Bd7 {1-0 (48) Shi Zheng,J (1329)-Rivero Castellano,C (1591) Lanzarote 2018}) 10. Nxe4 {[%emt 0:00:30]} Bb7 {[%emt 0:00:30]} 11. Ng3 {[%emt 0:00:30]} h6 {[%emt 0:00:30]} 12. Re1 {[%emt 0:00:30]} Bc5 {[%emt 0:00:30]} 13. c3 {[%emt 0:00:30][%cal Oc1h6]} Re8 {[%emt 0:00:30]} 14. Nh2 {[%emt 0:00:30]} Na5 {[%emt 0:00:30]} 15. Bc2 $1 {[%emt 0:00:30] [#] Hoping for b4.} Qd5 {[%emt 0:00:30][%csl Gb7][%cal Rd5g2]} 16. Nf3 {[%emt 0:00:30] And now b4 would win.} Nc6 {[%emt 0:00:30][%cal Ba5c6,Bc6e7,Be7c8,Bc8d6,Bd6b7][%mdl 32]} 17. b4 {[%emt 0:00:30]} Bf8 {[%emt 0:00:30]} 18. a4 {[%emt 0:00:30]} Rad8 {[%emt 0:00:30]} 19. Bd2 {[%emt 0:00:30]} Qd7 {[%emt 0:00:30]} 20. Ne4 {[%emt 0:00:30]} Nxe4 {[%emt 0:00:30]} 21. dxe4 {[%emt 0:00:30]} Ne7 {[%emt 0:00:30]} 22. Qe2 {[%emt 0:00:30]} Nc8 {[%emt 0:00:30]} 23. Be3 {[%emt 0:00:30]} Nd6 {[%emt 0:00:30]} 24. Nd2 {[%emt 0:00:30]} Bc6 {[%emt 0:00:30]} 25. a5 {[%emt 0:00:30]} Qc8 {[%emt 0:00:30]} 26. Rad1 {[%emt 0:00:30]} Bd7 {[%emt 0:00:30]} 27. Bc5 {[%emt 0:00:30]} Nb7 {[%emt 0:00:30]} 28. Bxf8 {[%emt 0:00:30]} Kxf8 {[%emt 0:00:30]} 29. Nf3 {[%emt 0:00:30]} Nd6 {[%emt 0:00:30]} 30. Qe3 {[%emt 0:00:30]} Kg8 {[%emt 0:00:30]} 31. Qc5 {[%emt 0:00:30]} f6 {[%emt 0:00:30]} ({Resist} 31... Nc4 32. Bb3 $16) 32. Nd2 {[%emt 0:00:30]} Be6 {[%emt 0:00:30]} 33. Nf1 {[%emt 0:00:30]} Rd7 {[%emt 0:00:30]} 34. Ne3 {[%emt 0:00:30]} Red8 {[%emt 0:00:30]} 35. Nd5 {[%emt 0:00:30]} Bxd5 {[%emt 0:00:30]} 36. Qxd5+ {[%emt 0:00:30]} Kh8 {[%emt 0:00:30]} 37. Qc6 {[%emt 0:00:30]} Qb7 {[%emt 0:00:30]} 38. Qc5 {[%emt 0:00:30]} Qc8 {[%emt 0:00:30][%cal Od6e4]} 39. Qc6 {[%emt 0:00:30]} Qb7 $1 {[%emt 0:00:30]} 40. Qc5 {[%emt 0:00:30]} Qc8 {[%emt 0:00:30]} 41. f3 {[%emt 0:30:30]} Qb8 {[%emt 0:30:30]} 42. Qc6 {[%emt 0:00:30]} Qb7 {[%emt 0:00:30]} 43. Qxb7 {[%emt 0:00:30]} Nxb7 {[%emt 0:00:30]} 44. Rxd7 {[%emt 0:00:30]} Rxd7 {[%emt 0:00:30]} 45. Rd1 {[%emt 0:00:30]} Rxd1+ {[%emt 0:00:30]} 46. Bxd1 $11 {[%emt 0:00:30][%cal Oc3c4][%mdl 4096] Endgame KB-KN} Kg8 {[%emt 0:00:30]} 47. Bb3+ {[%emt 0:00:30]} Kf8 {[%emt 0:00:30]} 48. c4 {[%emt 0:00:30] [#] cxb5 is the strong threat.} c6 {[%emt 0:00:30]} 49. Kf2 {[%emt 0:00:30]} Ke7 {[%emt 0:00:30]} 50. Ke3 {[%emt 0:00:30]} Nd6 {[%emt 0:00:30]} 51. cxb5 {[%emt 0:00:30]} (51. c5 $5 {[%cal Rc5d6]} Nf7 52. h4 $14) 51... cxb5 {[%emt 0:00:30] The position is equal.} 52. f4 {[%emt 0:00:30]} g6 {[%emt 0:00:30]} 53. Bd5 {[%emt 0:00:30]} Kf8 {[%emt 0:00:30]} 54. g3 {[%emt 0:00:30]} Kg7 {[%emt 0:00:30]} 55. h4 {[%emt 0:00:30] Weighted Error Value: White=0.05 (flawless) /Black=0.05 (flawless)} 1/2-1/2